fUST/lending_fUST_20250709
["ID","MTS","AMOUNT","RATE_DAILY","PERIOD"]
[370588663,1752068976496,-1377.0,0.00019679,2]
[370588664,1752068976526,-408.91852275,0.00019679,2]
[370588665,1752068976551,-1213.42,0.00019679,2]
[370588666,1752068976576,-460.0,0.00019679,2]
[370588667,1752068976599,-460.0,0.00019679,2]
[370588668,1752068976622,-460.0,0.00019679,2]
[370588669,1752068976644,-460.0,0.00019679,2]
[370588670,1752068976666,-460.0,0.00019679,2]
[370588671,1752068976692,-460.0,0.00019679,2]
[370588673,1752068976713,-460.0,0.0001968,2]
[370588674,1752068976738,-460.0,0.0001968,2]
[370588675,1752068976760,-460.0,0.0001968,2]
[370588676,1752068976781,-460.0,0.0001968,2]
[370588677,1752068976803,-460.0,0.0001968,2]
[370588678,1752068976825,-460.0,0.0001968,2]
[370588679,1752068976845,-460.0,0.0001968,2]
[370588680,1752068976867,-468.27108848,0.0001968,2]
[370588681,1752068976888,-460.0,0.0001968,2]
[370588682,1752068976909,-390.0,0.0001968,2]
[370588683,1752068976932,-460.0,0.0001968,2]
[370588684,1752068976954,-460.0,0.0001968,2]
[370588685,1752068976977,-460.0,0.0001968,2]
[370588686,1752068977003,-1304.48,0.0001968,2]
[370588687,1752068977026,-460.0,0.0001968,2]
[370588688,1752068977049,-460.0,0.0001968,2]
[370588689,1752068977072,-460.0,0.0001968,2]
[370588690,1752068977094,-460.0,0.0001968,2]
[370588691,1752068977116,-197.4764427,0.0001968,2]
[370588692,1752068977139,-460.0,0.0001968,2]
[370588693,1752068977161,-331.0,0.0001968,2]
[370588694,1752068977187,-460.0,0.0001968,2]
[370588695,1752068977210,-460.0,0.0001968,2]
[370588696,1752068977234,-886.1,0.0001968,2]
[370588697,1752068977259,-460.0,0.0001968,2]
[370588698,1752068977283,-460.0,0.0001968,2]
[370588699,1752068977304,-460.0,0.0001968,2]
[370588700,1752068977326,-460.0,0.0001968,2]
[370588701,1752068977348,-460.0,0.0001968,2]
[370588702,1752068977371,-460.0,0.0001968,2]
[370588703,1752068977393,-460.0,0.0001968,2]
[370588704,1752068977416,-799.61,0.0001968,2]
[370588705,1752068977441,-460.0,0.0001968,2]
[370588706,1752068977464,-460.0,0.0001968,2]
[370588707,1752068977487,-460.0,0.0001968,2]
[370588708,1752068977510,-460.0,0.0001968,2]
[370588709,1752068977532,-460.0,0.0001968,2]
[370588710,1752068977554,-460.0,0.0001968,2]
[370588711,1752068977577,-460.0,0.0001968,2]
[370588712,1752068977602,-460.0,0.0001968,2]
[370588713,1752068977624,-254.0479289,0.0001968,2]
[370588714,1752068977647,-594.62,0.0001968,2]
[370588715,1752068977671,-460.0,0.0001968,2]
[370588716,1752068977696,-1734.66,0.0001968,2]
[370588717,1752068977721,-2263.06,0.0001968,2]
[370588718,1752068977744,-460.0,0.0001968,2]
[370588719,1752068977768,-557.41,0.0001968,2]
[370588720,1752068977794,-470.01,0.0001968,2]
[370588721,1752068977818,-460.0,0.0001968,2]
[370588722,1752068977841,-663.9,0.00019681,2]
[370588723,1752068977864,-460.0,0.00019681,2]
[370588724,1752068977886,-460.0,0.00019682,2]
[370588725,1752068977908,-460.0,0.00019682,2]
[370588726,1752068977929,-460.0,0.00019682,2]
[370588727,1752068977951,-460.0,0.00019682,2]
[370588728,1752068977974,-460.0,0.00019682,2]
[370588729,1752068977995,-151.0,0.00019691,2]
[370588730,1752068978015,-151.0,0.00019691,2]
[370588731,1752068978035,-151.0,0.00019691,2]
[370588732,1752068978055,-151.111454,0.00019691,2]
[370588733,1752068978081,-2126.78853685,0.000199,2]
[370588734,1752068978101,-500.0,0.00019921,2]
[370588735,1752068978122,-160.0,0.00019928,2]
[370588736,1752068978143,-160.0,0.00019928,2]
[370588737,1752068978164,-848.55005627,0.00019928,2]
[370588738,1752068978185,-160.0,0.00019928,2]
[370588739,1752068978206,-12589.12013084,0.00019928,2]
[370588740,1752068978228,-160.0,0.00019928,2]
[370588741,1752068978249,-215.27775528,0.00019928,2]
[370588742,1752068978270,-160.0,0.00019928,2]
[370588743,1752068978291,-837.99933892,0.00019928,2]
[370588744,1752068978312,-214.14293035,0.00019928,2]
[370588745,1752068978333,-230.53906051,0.00019928,2]
[370588746,1752068978353,-160.0,0.00019928,2]
[370588747,1752068978375,-460.0,0.00019952,2]
[370588748,1752068978398,-13460.04,0.00019952,2]
[370588749,1752068978420,-569.77,0.00019952,2]
[370588750,1752068978445,-872.38,0.00019952,2]
[370588751,1752068978467,-460.0,0.00019952,2]
[370588752,1752068978490,-859.84,0.00019952,2]
[370588753,1752068978511,-456.01342338,0.00019953,2]
[370588754,1752068978534,-460.0,0.00019953,2]
[370588755,1752068978555,-460.0,0.00019953,2]
[370588756,1752068978577,-959.97,0.00019953,2]
[370588757,1752068978600,-460.0,0.00019953,2]
[370588758,1752068978621,-460.0,0.00019953,2]
[370588759,1752068978643,-844.75586272,0.00019953,2]
[370588760,1752068978779,-630.24413728,0.00019953,2]
[370588761,1752068978801,-460.0,0.00019953,2]
[370588762,1752068978826,-460.0,0.00019953,2]
[370588763,1752068978848,-460.0,0.00019953,2]
[370588764,1752068978869,-460.0,0.00019953,2]
[370588765,1752068978891,-460.0,0.00019953,2]
[370588766,1752068978910,-460.0,0.00019953,2]
[370588767,1752068978932,-460.0,0.00019953,2]
[370588768,1752068978953,-1247.19,0.00019953,2]
[370588769,1752068978974,-460.0,0.00019953,2]
[370588770,1752068979121,-1377.0,0.00019953,2]
[370588771,1752068979147,-1213.42,0.00019953,2]
[370588772,1752068979168,-460.0,0.00019953,2]
[370588773,1752068979190,-282.22534641,0.00019953,2]
[370588774,1752068979214,-890.48616391,0.00019953,2]
[370588775,1752068979237,-890.48616391,0.00019953,2]
[370588776,1752068979259,-890.48616391,0.00019953,2]
[370588777,1752068979283,-890.48616391,0.00019953,2]
[370588778,1752068979306,-890.48616391,0.00019953,2]
[370588779,1752068979330,-890.48616391,0.00019953,2]
[370588780,1752068979353,-890.48616391,0.00019953,2]
[370588781,1752068979376,-890.48616391,0.00019953,2]
[370588782,1752068979400,-890.48616391,0.00019953,2]
[370588783,1752068979424,-890.48616391,0.00019953,2]
[370588784,1752068979452,-890.48616391,0.00019953,2]
[370588785,1752068979475,-890.48616391,0.00019953,2]
[370588786,1752068979498,-460.0,0.00019953,2]
[370588787,1752068979520,-460.0,0.00019953,2]
[370588788,1752068979543,-460.0,0.00019953,2]
[370588789,1752068979566,-927.15324124,0.00019953,2]
[370588790,1752068979590,-927.15324124,0.00019953,2]
[370588791,1752068979612,-927.15324124,0.00019953,2]
[370588792,1752068979635,-927.15324124,0.00019953,2]
[370588793,1752068979658,-927.15324124,0.00019953,2]
[370588794,1752068979683,-927.15324124,0.00019953,2]
[370588795,1752068979706,-927.15324124,0.00019953,2]
[370588796,1752068979730,-927.15324124,0.00019953,2]
[370588797,1752068979753,-927.15324124,0.00019953,2]
[370588798,1752068979776,-927.15324124,0.00019953,2]
[370588799,1752068979798,-932.947949,0.00019953,2]
[370588800,1752068979821,-932.947949,0.00019953,2]
[370588801,1752068979845,-932.947949,0.00019953,2]
[370588802,1752068979867,-932.947949,0.00019953,2]
[370588803,1752068979888,-932.947949,0.00019953,2]
[370588804,1752068979912,-460.0,0.00019953,2]
[370588805,1752068979935,-460.0,0.00019954,2]
[370588806,1752068979955,-460.0,0.00019954,2]
[370588807,1752068979975,-382.92192392,0.00019954,2]
[370588808,1752068979996,-1304.48,0.00019954,2]
[370588809,1752068980016,-460.0,0.00019954,2]
[370588810,1752068980036,-460.0,0.00019954,2]
[370588811,1752068980057,-460.0,0.00019954,2]
[370588812,1752068980079,-886.1,0.00019954,2]
[370588813,1752068980099,-460.0,0.00019954,2]
[370588814,1752068980120,-460.0,0.00019954,2]
[370588815,1752068980146,-460.0,0.00019954,2]
[370588816,1752068980169,-460.0,0.00019954,2]
[370588817,1752068980194,-460.0,0.00019954,2]
[370588818,1752068980215,-247.7,0.00019954,2]
[370588819,1752068980237,-799.61,0.00019954,2]
[370588820,1752068980260,-460.0,0.00019954,2]
[370588821,1752068980283,-549.54904538,0.00019954,2]
[370588822,1752068980305,-460.0,0.00019954,2]
[370588823,1752068980326,-460.0,0.00019954,2]
[370588824,1752068980350,-460.0,0.00019954,2]
[370588825,1752068980374,-594.62,0.00019954,2]
[370588826,1752068980396,-460.0,0.00019954,2]
[370588827,1752068980420,-1734.66,0.00019954,2]
[370588828,1752068980444,-2263.06,0.00019954,2]
[370588829,1752068980467,-534.38825246,0.00019954,2]
[370588830,1752068980490,-557.41,0.00019954,2]
[370588831,1752068980512,-470.01,0.00019954,2]
[370588832,1752068980535,-663.9,0.00019955,2]
[370588833,1752068980556,-460.0,0.00019955,2]
[370588834,1752068980577,-151.0,0.00019956,2]
[370588835,1752068980598,-151.0,0.00019956,2]
[370588836,1752068980619,-460.0,0.00019956,2]
[370588837,1752068980659,460.0,0.00019404,2]
[370588838,1752068980689,1362.10400554,0.00019953,2]
[370588839,1752068980734,460.0,0.00019678,2]
[370588840,1752068980764,460.0,0.00019952,2]
[370588841,1752068980862,460.0,0.00019405,2]
[370588842,1752068980898,460.0,0.00019679,2]
[370588844,1752068980929,460.0,0.00019953,2]
[370588845,1752068981136,460.0,0.00019405,2]
[370588847,1752068985006,460.0,0.00019406,2]
[370588848,1752068986666,580.91,0.00019406,2]
[370588850,1752068986955,580.91,0.0001968,2]
[370588851,1752068987065,460.0,0.0001968,2]
[370588852,1752068987214,580.91,0.00019954,2]
[370588853,1752068988393,238.36820097,0.00019953,2]
[370588856,1752068993330,460.0,0.00019405,2]
[370588857,1752068993581,460.0,0.00019679,2]
[370588858,1752068993824,460.0,0.00019953,2]
[370588861,1752068998451,460.0,0.00019404,2]
[370588863,1752068999660,460.0,0.00019406,2]
[370588864,1752069000501,460.0,0.00019404,2]
[370588865,1752069001186,839.97,0.00019404,2]
[370588866,1752069001452,839.97,0.00019678,2]
[370588867,1752069001721,839.97,0.00019952,2]
[370588869,1752069005622,5042.82026218,0.0001721,2]
[370588875,1752069019371,155.0,0.00019956,2]
[370588876,1752069023989,460.0,0.00019405,2]
[370588877,1752069024228,460.0,0.00019679,2]
[370588878,1752069024483,460.0,0.00019953,2]
[370588879,1752069026327,460.0,0.00019404,2]
[370588882,1752069030070,460.0,0.00019405,2]
[370588883,1752069030319,460.0,0.00019679,2]
[370588884,1752069030653,460.0,0.00019953,2]
[370588930,1752069032819,460.0,0.00019404,2]
[370588951,1752069033306,460.0,0.00019404,2]
[370588953,1752069036089,460.0,0.00019405,2]
[370588954,1752069036720,775.34,0.00019406,2]
[370588955,1752069036982,775.34,0.0001968,2]
[370588956,1752069037244,775.34,0.00019954,2]
[370589028,1752069039848,482.0,0.00019406,2]
[370589051,1752069040059,-300.0,0.0002002,2]
[370589053,1752069040069,-500.0,0.00020021,2]
[370589055,1752069040078,-427.63946218,0.00020021,2]
[370589056,1752069040088,-1000.0,0.00020021,2]
[370589057,1752069040098,-500.0,0.00020021,2]
[370589058,1752069040107,-500.0,0.00020021,2]
[370589059,1752069040116,-692.00844028,0.00020122,3]
[370589060,1752069040126,-490.806659,0.0002013,2]
[370589061,1752069040135,-257.57568071,0.00020172,2]
[370589062,1752069040150,-226.22276,0.00020187,2]
[370589063,1752069040160,-313.47138301,0.000202,30]
[370589064,1752069040188,482.0,0.0001968,2]
[370589065,1752069040201,-2.26109499,0.000202,30]
[370589066,1752069040210,-490.806659,0.00020226,2]
[370589067,1752069040220,-460.0,0.00020226,2]
[370589068,1752069040229,-13460.04,0.00020226,2]
[370589069,1752069040238,-672.72203958,0.00020226,2]
[370589073,1752069040371,482.0,0.00019954,2]
[370589191,1752069041506,1773.91,0.00019404,2]
[370589218,1752069041760,1773.91,0.00019678,2]
[370589262,1752069042173,460.0,0.00019406,2]
[370589293,1752069042401,460.0,0.00019403,2]
[370589300,1752069042427,460.0,0.0001968,2]
[370589336,1752069042623,460.0,0.00019404,2]
[370589343,1752069042649,460.0,0.00019677,2]
[370589350,1752069042676,460.0,0.00019954,2]
[370589378,1752069042927,-199.65796042,0.00020226,2]
[370589380,1752069042937,-409.45416504,0.00020226,2]
[370589382,1752069042946,-139.46772301,0.00020226,2]
[370589442,1752069043534,460.0,0.00019403,2]
[370589468,1752069043776,460.0,0.00019677,2]
[370589494,1752069044029,1773.91,0.00019952,2]
[370589501,1752069044086,13255.65149415,0.00019919,2]
[370589505,1752069044118,483.4,0.00019405,2]
[370589509,1752069044143,460.0,0.00019951,2]
[370589513,1752069044172,500.0,0.00019405,2]
[370589518,1752069044216,460.0,0.00019405,2]
[370589523,1752069044254,460.0,0.00019678,2]
[370589534,1752069044356,483.4,0.00019679,2]
[370589539,1752069044452,14761.6,0.00019404,2]
[370589540,1752069044479,500.0,0.00019679,2]
[370589541,1752069044507,460.0,0.00019679,2]
[370589542,1752069044538,460.0,0.00019952,2]
[370589543,1752069044599,483.4,0.00019953,2]
[370589556,1752069044713,500.0,0.00019953,2]
[370589560,1752069044746,2769.19165383,0.00019678,2]
[370590899,1752069080933,1000.0,0.00027,120]
[370590919,1752069119154,2298.0,0.00027,120]
[370590949,1752069186897,2400.0,0.00027397,120]
[370590959,1752069208436,-231.3658112,0.00018326,2]
[370590961,1752069210581,-23.6341888,0.00018326,2]
[370590974,1752069462937,1698.207,0.00027397,120]
[370591005,1752069543536,15077.37292329,0.00025582,60]
[370591006,1752069557713,46785.42891922,0.00027,120]
[370591022,1752069617812,1839.1,0.00027397,120]
[370591028,1752069735540,211.84569,0.00013699,2]
[370591030,1752069841332,4007.69998357,0.00027397,120]
[370591034,1752069948137,-220.2289947,0.00018482,2]
[370591035,1752069948172,-216.65138484,0.00018482,2]
[370591036,1752069948206,-157.97725699,0.0001861,2]
[370591037,1752069948239,-502.2500815,0.00018862,2]
[370591038,1752069948272,-1214.12755547,0.00018862,2]
[370591039,1752070009481,5024.24209621,0.000183,2]
[370591040,1752070009503,4975.75790379,0.000183,2]
[370591041,1752070026091,-792.86377022,0.00018862,2]
[370591042,1752070026117,-666.0,0.00019178,2]
[370591043,1752070026138,-343.1048573,0.00019178,2]
[370591044,1752070026162,-303.609569,0.00019178,2]
[370591045,1752070026183,-300.0,0.00019218,2]
[370591046,1752070026204,-1609.65395604,0.00019219,2]
[370591047,1752070026260,4024.24209621,0.000183,2]
[370591048,1752070026283,5975.75790379,0.000183,2]
[370591049,1752070032667,1540.27721509,0.00027397,120]
[370591050,1752070035095,-238.38881347,0.00019219,2]
[370591051,1752070047086,-1735.58403376,0.00019204,2]
[370591052,1752070047111,-2204.79550881,0.00019219,2]
[370591053,1752070110030,3024.24209621,0.000183,2]
[370591054,1752070110053,6975.75790379,0.000183,2]
[370591056,1752070163896,175.811755,0.00018293,2]
[370591057,1752070173139,-300.0,0.00019218,2]
[370591058,1752070173160,-460.0,0.00019218,2]
[370591059,1752070173180,-4373.81534848,0.00019219,2]
[370591062,1752070197729,1848.43034121,0.000183,2]
[370591063,1752070197752,1162.56965879,0.000183,2]
[370591109,1752070232138,-666.0,0.00019178,2]
[370591110,1752070232148,-460.0,0.00019218,2]
[370591111,1752070232158,-461.17921217,0.00019218,2]
[370591112,1752070232169,-460.0,0.00019218,2]
[370591113,1752070232179,-460.0,0.00019218,2]
[370591114,1752070232188,-215.32078783,0.00019218,2]
[370591115,1752070232225,-244.67921217,0.00019218,2]
[370591119,1752070232407,-460.0,0.00019218,2]
[370591120,1752070232418,-460.0,0.00019218,2]
[370591121,1752070232428,-460.0,0.00019218,2]
[370591122,1752070232437,-460.0,0.00019218,2]
[370591123,1752070232446,-460.0,0.00019218,2]
[370591124,1752070232455,-2338.08489602,0.00019282,2]
[370591125,1752070232485,-1488.9880774,0.00019282,2]
[370591126,1752070232496,-448.53218251,0.00019282,2]
[370591127,1752070232506,-1200.0,0.00019292,2]
[370591128,1752070232516,-252.27171947,0.00019292,2]
[370591129,1752070232525,-151.0,0.00019292,2]
[370591130,1752070232534,-460.0,0.00019293,2]
[370591131,1752070232544,-260.23278416,0.00019293,2]
[370591152,1752070238156,-460.0,0.00019218,2]
[370591153,1752070238166,-217.10053554,0.00019218,2]
[370591154,1752070238179,-242.89946446,0.00019218,2]
[370591155,1752070238190,-199.76721584,0.00019293,2]
[370591156,1752070238200,-465.18212705,0.00019293,2]
[370591157,1752070238211,-239.65779265,0.00019293,2]
[370591158,1752070238223,-220.34220735,0.00019293,2]
[370591159,1752070238233,-460.0,0.00019293,2]
[370591160,1752070238243,-460.0,0.00019293,2]
[370591161,1752070238252,-460.80517486,0.00019293,2]
[370591162,1752070238262,-460.0,0.00019293,2]
[370591163,1752070238271,-460.0,0.00019293,2]
[370591164,1752070238281,-460.0,0.00019293,2]
[370591165,1752070238290,-460.0,0.00019293,2]
[370591166,1752070238299,-460.0,0.00019293,2]
[370591167,1752070238309,-429.66055012,0.00019293,2]
[370591168,1752070238322,-30.33944988,0.00019293,2]
[370591169,1752070238331,-460.0,0.00019293,2]
[370591170,1752070238341,-107.15791663,0.00019293,2]
[370591171,1752070238352,-352.84208337,0.00019293,2]
[370591172,1752070238362,-339.06609552,0.00019293,2]
[370591173,1752070238371,-150.53864703,0.00019293,2]
[370591174,1752070238398,-309.46135297,0.00019293,2]
[370591175,1752070238409,-460.0,0.00019293,2]
[370591176,1752070238418,-460.0,0.00019293,2]
[370591177,1752070238428,-25.78989661,0.00019293,2]
[370591178,1752070238440,-575.60642427,0.00019293,2]
[370591179,1752070238451,-33.315758,0.00019293,2]
[370591180,1752070238462,-325.38067191,0.00019293,2]
[370591181,1752070238489,-101.30357009,0.00019293,2]
[370591182,1752070238499,-460.0,0.00019293,2]
[370591183,1752070238508,-460.0,0.00019293,2]
[370591184,1752070238518,-460.0,0.00019293,2]
[370591185,1752070238528,-460.0,0.00019293,2]
[370591186,1752070238538,-460.0,0.00019293,2]
[370591187,1752070238550,-460.0,0.00019293,2]
[370591188,1752070238561,-460.0,0.00019293,2]
[370591189,1752070238571,-460.0,0.00019293,2]
[370591190,1752070238580,-460.0,0.00019293,2]
[370591191,1752070238589,-1000.0,0.00019293,2]
[370591192,1752070238599,-460.0,0.00019293,2]
[370591193,1752070238609,-460.0,0.00019293,2]
[370591194,1752070238619,-460.0,0.00019293,2]
[370591195,1752070238628,-460.0,0.00019293,2]
[370591196,1752070238637,-314.83548451,0.00019293,2]
[370591197,1752070238649,-145.16451549,0.00019293,2]
[370591198,1752070238658,-460.0,0.00019293,2]
[370591199,1752070238667,-168.50558211,0.00019293,2]
[370591200,1752070238679,-291.49441789,0.00019293,2]
[370591201,1752070238688,-533.13,0.00019293,2]
[370591202,1752070238697,-261.76213431,0.00019293,2]
[370591203,1752070238707,-460.0,0.00019293,2]
[370591204,1752070238716,-460.0,0.00019293,2]
[370591205,1752070238726,-460.0,0.00019293,2]
[370591206,1752070238736,-460.0,0.00019293,2]
[370591207,1752070238745,-460.0,0.00019293,2]
[370591208,1752070238754,-145.99377231,0.00019293,2]
[370591209,1752070238766,-314.00622769,0.00019293,2]
[370591210,1752070238775,-457.59336901,0.00019293,2]
[370591211,1752070238784,-2446.54,0.00019293,2]
[370591212,1752070238794,-292.4548863,0.00019293,2]
[370591213,1752070238803,-493.2,0.00019293,2]
[370591214,1752070238814,-460.0,0.00019293,2]
[370591215,1752070238823,-460.0,0.00019293,2]
[370591216,1752070238832,-1735.58403375,0.00019297,2]
[370591217,1752070238842,-405.85748006,0.00019301,2]
[370591218,1752070238852,-500.0,0.00019301,2]
[370591219,1752070238862,-500.0,0.00019301,2]
[370591220,1752070238871,-500.0,0.00019301,2]
[370591221,1752070238880,-500.0,0.00019301,2]
[370591222,1752070238890,-503.30033939,0.00019301,2]
[370591223,1752070238899,-500.0,0.00019301,2]
[370591224,1752070238909,-500.0,0.00019301,2]
[370591225,1752070238920,-436.542496,0.00019301,2]
[370591226,1752070238930,-500.0,0.00019301,2]
[370591227,1752070238939,-500.0,0.00019301,2]
[370591228,1752070238948,-500.0,0.00019301,2]
[370591229,1752070238957,-500.0,0.00019301,2]
[370591230,1752070238967,-500.0,0.00019301,2]
[370591231,1752070238977,-500.0,0.00019301,2]
[370591232,1752070238986,-500.0,0.00019301,2]
[370591233,1752070238997,-500.0,0.00019301,2]
[370591234,1752070239006,-263.96745752,0.00019301,2]
[370591235,1752070239016,-394.24392592,0.00019301,2]
[370591236,1752070239025,-510.62899164,0.00019301,2]
[370591237,1752070239035,-500.0,0.00019301,2]
[370591238,1752070239044,-500.0,0.00019301,2]
[370591239,1752070239055,-500.0,0.00019301,2]
[370591240,1752070239067,-500.0,0.00019301,2]
[370591241,1752070239076,-500.0,0.00019301,2]
[370591242,1752070239086,-500.0,0.00019301,2]
[370591243,1752070239096,-500.0,0.00019301,2]
[370591244,1752070239106,-500.0,0.00019301,2]
[370591245,1752070239116,-500.0,0.00019301,2]
[370591246,1752070239125,-500.0,0.00019301,2]
[370591247,1752070239135,-500.0,0.00019301,2]
[370591248,1752070239145,-500.0,0.00019301,2]
[370591249,1752070239155,-500.0,0.00019301,2]
[370591250,1752070239164,-500.0,0.00019301,2]
[370591251,1752070239174,-500.0,0.00019301,2]
[370591252,1752070239184,-500.0,0.00019301,2]
[370591253,1752070239193,-500.0,0.00019301,2]
[370591254,1752070239203,-500.0,0.00019301,2]
[370591255,1752070239212,-500.0,0.00019301,2]
[370591256,1752070239221,-500.0,0.00019301,2]
[370591257,1752070239231,-500.0,0.00019301,2]
[370591258,1752070239240,-500.0,0.00019301,2]
[370591259,1752070239250,-625.02990212,0.00019301,2]
[370591260,1752070239259,-500.0,0.00019301,2]
[370591261,1752070239269,-500.0,0.00019301,2]
[370591262,1752070239278,-500.0,0.00019301,2]
[370591263,1752070239288,-500.0,0.00019301,2]
[370591264,1752070239298,-500.0,0.00019301,2]
[370591265,1752070239308,-500.0,0.00019301,2]
[370591266,1752070239317,-500.0,0.00019301,2]
[370591267,1752070239327,-500.0,0.00019301,2]
[370591268,1752070239336,-370.52303778,0.00019301,2]
[370591269,1752070239346,-500.0,0.00019301,2]
[370591270,1752070239356,-500.0,0.00019301,2]
[370591271,1752070239365,-500.0,0.00019301,2]
[370591272,1752070239375,-460.0,0.00019302,2]
[370591273,1752070239385,-460.0,0.00019302,2]
[370591274,1752070239395,-460.0,0.00019302,2]
[370591275,1752070239406,-460.0,0.00019302,2]
[370591276,1752070239416,-505.53268858,0.00019302,2]
[370591277,1752070239516,-460.0,0.00019302,2]
[370591278,1752070239526,-460.0,0.00019302,2]
[370591279,1752070239536,-460.0,0.00019302,2]
[370591280,1752070239546,-460.0,0.00019302,2]
[370591281,1752070239555,-460.0,0.00019302,2]
[370591282,1752070239566,-460.0,0.00019302,2]
[370591283,1752070239576,-460.0,0.00019302,2]
[370591284,1752070239591,-460.0,0.00019302,2]
[370591285,1752070239602,-460.30962934,0.00019302,2]
[370591286,1752070239612,-460.0,0.00019302,2]
[370591287,1752070239622,-460.0,0.00019302,2]
[370591288,1752070239632,-460.0,0.00019302,2]
[370591289,1752070239641,-460.0,0.00019302,2]
[370591290,1752070239650,-460.0,0.00019302,2]
[370591291,1752070239660,-460.0,0.00019302,2]
[370591293,1752070239669,-460.0,0.00019302,2]
[370591295,1752070239679,-460.0,0.00019302,2]
[370591297,1752070239688,-536.64129561,0.00019302,2]
[370591299,1752070239699,-460.0,0.00019302,2]
[370591301,1752070239709,-460.0,0.00019302,2]
[370591303,1752070239718,-460.0,0.00019302,2]
[370591305,1752070239728,-460.0,0.00019302,2]
[370591307,1752070239737,-460.0,0.00019302,2]
[370591308,1752070239747,-155.55858491,0.00019302,2]
[370591309,1752070239756,-460.0,0.00019302,2]
[370591310,1752070239766,-460.0,0.00019302,2]
[370591311,1752070239776,-460.0,0.00019302,2]
[370591312,1752070239785,-460.0,0.00019302,2]
[370591313,1752070239795,-460.0,0.00019302,2]
[370591314,1752070239804,-460.0,0.00019302,2]
[370591315,1752070239815,-460.0,0.00019302,2]
[370591316,1752070239824,-503.63774006,0.00019302,2]
[370591317,1752070239834,-337.69502636,0.00019302,2]
[370591412,1752070240806,-122.30497364,0.00019302,2]
[370591414,1752070240816,-197.55499953,0.00019302,2]
[370591436,1752070241022,-26.48764594,0.00019302,2]
[370591657,1752070243279,-460.0,0.00019218,2]
[370591659,1752070243288,-235.95735453,0.00019302,2]
[370591661,1752070243298,-460.0,0.00019302,2]
[370591663,1752070243307,-460.0,0.00019302,2]
[370591664,1752070243316,-460.0,0.00019302,2]
[370591666,1752070243325,-460.0,0.00019302,2]
[370591668,1752070243335,-460.0,0.00019302,2]
[370591670,1752070243345,-460.0,0.00019302,2]
[370591672,1752070243354,-460.0,0.00019302,2]
[370591674,1752070243364,-262.9927179,0.00019302,2]
[370591677,1752070243375,-197.0072821,0.00019302,2]
[370591679,1752070243385,-460.0,0.00019302,2]
[370591681,1752070243394,-118.43313188,0.00019302,2]
[370591773,1752070244274,-341.56686812,0.00019302,2]
[370591774,1752070244284,-460.0,0.00019302,2]
[370591775,1752070244294,-460.0,0.00019302,2]
[370591776,1752070244303,-460.0,0.00019302,2]
[370591777,1752070244312,-460.0,0.00019302,2]
[370591778,1752070244323,-460.0,0.00019302,2]
[370591779,1752070244410,-460.0,0.00019302,2]
[370591780,1752070244431,-460.0,0.00019302,2]
[370591781,1752070244440,-460.0,0.00019302,2]
[370591782,1752070244450,-460.0,0.00019302,2]